{"text_format":"2","workbook":"xlsx","n_sheets":1,"sheets":["Planilha1"],"not_rendered":{"charts":0,"images":0,"macros":0,"external_links":0,"defined_names":0,"comments":0,"pivot_tables":0},"unopened":[],"bounds":{"document_bytes":16777216,"sheet_cells":100000,"run_cost":"one","rows_first":2000,"rows_last":500,"rows_between":2000,"halvings":0,"cell_chars":16384,"cell_head_chars":4096},"cells_cut":0,"cells_raw":0,"read":"whole","date_system":"1900"}

{"sheet":"Planilha1","index":0,"n_rows":55,"n_cols":7,"rows_kept":55,"cut":false,"hidden":false,"merged":[[0,0,0,6],[1,0,1,6]]}
["ANEXO II"]
["PLANILHA DE QUANTIDADES, PREÇOS ORÇADOS E ESPECIFICAÇÕES TÉCNICAS"]
["ITEM","CATMAT","DESCRIÇÃO","UNIDADE","QUANTIDADE MÁXIMA ANUAL","VALOR UNITÁRIO MÁXIMO","VALOR TOTAL"]
["01",318712,"Trator Agrícola 75 CV – potência mínima do motor de 75 CV, no mínimo 3 cilindros, capacidade mínima do tanque de combustível de 60 litros, tração 4x4, pneus dianteiro novos mínimo 12.4x24 e traseiros novos mínimo 18.4x30, com contrapesos frontais, sistema de levante hidráulico com terceiro ponto e controle remoto de implementos Cat. II, tomada de força independente com 540 RPM de acionamento mecânico, sistema elétrico completo com faróis de serviço e sinalética completa. Cabine do operador plataformada com toldo e arco de segurança. Com entrega técnica. Logomarca da CODEVASF silkada em local visível, conforme modelo no edital. Garantia mínima 12 meses.","UND",147,112232.33,{"$f":"ROUND(E4*F4,2)","v":16498152.51}]
["02",318712,"(COTA DE ATÉ 25% - Exclusivo para ME e EPP):\nTrator Agrícola 75 CV – potência mínima do motor de 75 CV, no mínimo 3 cilindros, capacidade mínima do tanque de combustível de 60 litros, tração 4x4, pneus dianteiro novos mínimo 12.4x24 e traseiros novos mínimo 18.4x30, com contrapesos frontais, sistema de levante hidráulico com terceiro ponto e controle remoto de implementos Cat. II, tomada de força independente com 540 RPM de acionamento mecânico, sistema elétrico completo com faróis de serviço e sinalética completa. Cabine do operador plataformada com toldo e arco de segurança. Com entrega técnica. Logomarca da CODEVASF silkada em local visível, conforme modelo no edital. Garantia mínima 12 meses.","UND",48,112232.33,5387151.8399999999]
["03",463144,"Arado Reversível 3 discos de 30” - Acoplado no sistema de terceiro pondo do trator, classe II, acionamento hidráulico, 3 discos de 30”. Compatibilidade com trator de 75 cv. Com pinos e contra pinos. Logomarca da CODEVASF silkada em local visível, conforme modelo no edital. Garantia mínima 12 meses.","UND",23,13583.33,312416.59000000003]
["04",463144,"(COTA DE ATÉ 25% - Exclusivo para ME e EPP):\nArado Reversível 3 discos de 30” - Acoplado no sistema de terceiro pondo do trator, classe II, acionamento hidráulico, 3 discos de 30”. Compatibilidade com trator de 75 cv. Com pinos e contra pinos. Logomarca da CODEVASF silkada em local visível, conforme modelo no edital. Garantia mínima 12 meses.","UND",7,13583.33,95083.31]
["05",304353,"Carreta agrícola de madeira 2 eixos cap 4 ton - Chassi de aço, carroceria de madeira, capacidade mínima de carga 4,0 toneladas, 2 eixos com molas, engate automático no trator, com giro, altura máxima da plataforma em relação ao solo 1000mm, dimensões máximas da carroceria: comprimento (3000mm - 4500mm), largura (1800mm - 2000mm), altura 0,97mm, rodas 16'', pneus agrícolas 6.50x16'', peso máximo do conjunto montado 700Kgf, molas elípticas tipo feixe de mola. Logomarca da CODEVASF silkada em local visível, conforme modelo no edital. Garantia mínima 12 meses.","UND",99,9850,975150]
["06",304353,"(COTA DE ATÉ 25% - Exclusivo para ME e EPP):\nCarreta agrícola de madeira 2 eixos cap 4 ton - Chassi de aço, carroceria de madeira, capacidade mínima de carga 4,0 toneladas, 2 eixos com molas, engate automático no trator, com giro, altura máxima da plataforma em relação ao solo 1000mm, dimensões máximas da carroceria: comprimento (3000mm - 4500mm), largura (1800mm - 2000mm), altura 0,97mm, rodas 16'', pneus agrícolas 6.50x16'', peso máximo do conjunto montado 700Kgf, molas elípticas tipo feixe de mola. Logomarca da CODEVASF silkada em local visível, conforme modelo no edital. Garantia mínima 12 meses.","UND",33,9850,325050]
["07",62995,"Grade Aradora 14 discos de 26'' - Diâmetro do eixo 1.5/8, controle remoto, com rodas e pneus para transporte, mancais a graxa, largura de trabalho 1.300mm a 1.500 mm. Compatibilidade com trator de 75 cv. Logomarca da CODEVASF silkada em local visível, conforme modelo no edital. Garantia mínima 12 meses.","UND",99,18943.330000000002,1875389.67]
["08",62995,"(COTA DE ATÉ 25% - Exclusivo para ME e EPP):\nGrade Aradora 14 discos de 26'' - Diâmetro do eixo 1.5/8, controle remoto, com rodas e pneus para transporte, mancais a graxa, largura de trabalho 1.300mm a 1.500 mm. Compatibilidade com trator de 75 cv. Logomarca da CODEVASF silkada em local visível, conforme modelo no edital. Garantia mínima 12 meses.","UND",33,18943.330000000002,625129.89]
["09",461903,"Grade niveladora 28 discos de 20\" – hidráulica com controle remoto de 28 discos de no mínimo 20\", com rodas e pneus para transporte, largura de trabalho mínima de 2350 mm, espaçamento entre disco de 175 mm para tratores com potência mínima de 75CV. Logomarca da CODEVASF silkada em local visível, conforme modelo no edital. Garantia mínima 12 meses.","UND",50,20008,1000400]
["10",461903,"(COTA DE ATÉ 25% - Exclusivo para ME e EPP):\nGrade niveladora 28 discos de 20\" – hidráulica com controle remoto de 28 discos de no mínimo 20\", com rodas e pneus para transporte, largura de trabalho mínima de 2350 mm, espaçamento entre disco de 175 mm para tratores com potência mínima de 75CV. Logomarca da CODEVASF silkada em local visível, conforme modelo no edital. Garantia mínima 12 meses.","UND",16,20008,320128]
["11",328523,"Roçadeira agrícola hidráulica - central e lateral, circuito hidráulico independente; acoplamento ao sistema hidráulico de 03 pontos e acionamento pela tomada de força 540 rpm; transmissão por correia, roda reguladora de profundidade; navalhas em aço mais 01 jogo para reposição; largura trabalho (corte) 1700 mm, mínimo 02 (duas) facas, proteção lateral em chapas de aço, altura de corte mínimo 5 a 20 cm, cardam com protetor incluso. Logomarca da CODEVASF silkada em local visível, conforme modelo no edital. Garantia mínima 12 meses.","UND",32,10863,347616]
["12",328523,"(COTA DE ATÉ 25% - Exclusivo para ME e EPP):\nRoçadeira agrícola hidráulica - central e lateral, circuito hidráulico independente; acoplamento ao sistema hidráulico de 03 pontos e acionamento pela tomada de força 540 rpm; transmissão por correia, roda reguladora de profundidade; navalhas em aço mais 01 jogo para reposição; largura trabalho (corte) 1700 mm, mínimo 02 (duas) facas, proteção lateral em chapas de aço, altura de corte mínimo 5 a 20 cm, cardam com protetor incluso. Logomarca da CODEVASF silkada em local visível, conforme modelo no edital. Garantia mínima 12 meses.","UND",10,10863,108630]
["13",325485,"Sulcador 3 linhas – leve, acoplável ao sistema de terceiro ponto, Classe II,  Profundidade sulco 460mm, Quantidade de linhas 3, sem adubadeira, bico de pato, largura sulco 400 mm, espaçamento 900 mm a 1.100 mm; para trator de 75CV. Logomarca da CODEVASF silkada em local visível, conforme modelo no edital. Garantia mínima 12 meses","UND",23,6366.67,146433.41]
["14",325485,"(COTA DE ATÉ 25% - Exclusivo para ME e EPP):\nSulcador 3 linhas – leve, acoplável ao sistema de terceiro ponto, Classe II,  Profundidade sulco 460mm, Quantidade de linhas 3, sem adubadeira, bico de pato, largura sulco 400 mm, espaçamento 900 mm a 1.100 mm; para trator de 75CV. Logomarca da CODEVASF silkada em local visível, conforme modelo no edital. Garantia mínima 12 meses.","UND",7,6366.67,44566.69]
["15",461604,"Carreta tanque agrícola capacidade mínima 4.000 litros - com bomba para carga e descarga de líquido acionada pela TDP de 540 rpm do trator, 02 eixos, 04 rodas, com pneus agrícolas mínimo 900 x 20, estrutura de acoplamento a trator pela barra de tração, tanque construído em chapa de aço mínimo 3/16 com revestimento interno anti corrosão, tratamento externo com tinta epóxi, chassi em viga U mínimo de 6”, boca de inspeção, escada traseira. Logomarca da CODEVASF silkada em local visível, conforme modelo no edital. Garantia mínima 12 meses","UND",42,21900,919800]
["16",461604,"(COTA DE ATÉ 25% - Exclusivo para ME e EPP):\nCarreta tanque agrícola capacidade mínima 4.000 litros - com bomba para carga e descarga de líquido acionada pela TDP de 540 rpm do trator, 02 eixos, 04 rodas, com pneus agrícolas mínimo 900 x 20, estrutura de acoplamento a trator pela barra de tração, tanque construído em chapa de aço mínimo 3/16 com revestimento interno anti corrosão, tratamento externo com tinta epóxi, chassi em viga U mínimo de 6”, boca de inspeção, escada traseira. Logomarca da CODEVASF silkada em local visível, conforme modelo no edital. Garantia mínima 12 meses.","UND",13,21900,284700]
["17",150344,"Colhedora/Ensiladeira de Forragem - Produção até 30 ton/h. Opção de corte: 24 (2 a 36mm). Número de facas 12. Acionamento pela tomada de força do trator. Quantidade de rolos recolhedores 4. Potência na TDP 50 a 80 cv. RPM na TDP 540. Transmissão caixa e cardam. Logomarca da CODEVASF silkada em local visível, conforme modelo no edital. Garantia mínima 12 meses.","UND",49,31350,1536150]
["18",150344,"(COTA DE ATÉ 25% - Exclusivo para ME e EPP):\nColhedora/Ensiladeira de Forragem - Produção até 30 ton/h. Opção de corte: 24 (2 a 36mm). Número de facas 12. Acionamento pela tomada de força do trator. Quantidade de rolos recolhedores 4. Potência na TDP 50 a 80 cv. RPM na TDP 540. Transmissão caixa e cardam. Logomarca da CODEVASF silkada em local visível, conforme modelo no edital. Garantia mínima 12 meses.","UND",16,31350,501600]
["19",217980,"Tanque de Expansão 1.000 litros - duas ordenhas, construção sanitária interna em aço inoxidável AISI 304 com espessura mínima de 1,25 mm, polido com rugosidade menor que RA = 1 (0,62), com parede dupla e isolamento de 50 mm de espessura e densidade de 40 kg/m³ em poliuretano injetado livre de CFC, que previne o aumento da temperatura do leite resfriado, não ultrapassando 1,2º C em 12 horas a uma temperatura ambiente de 32º C.; Alimentação elétrica monofásica 220V e 60 HZ; Evaporador com expansão direta em aço inoxidável AISI 304 com chapas de espessura mínimas de 2,0 mm no fundo e 1,0 mm na câmara; Tampa basculante em aço inoxidável AISI 304 com espessura mínima de 1,25 mm, dotada de amortecedores a gás para sustentação da mesma. Braço tubular de sustentação de tampa de aço inoxidável AISI, diâmetro de 1”; Sistema de agitação controlado automaticamente, permitindo uma perfeita homogenização do leite, evitando formação de gelo ou espumas e temporizador para evitar a separação da gordura no período entre resfriamento. Pá agitadora em aço inoxidável AISI 304 com extremidades dobradas em ângulos que garantem a homogenização do leite e maximizam a troca térmica, dotada de sistema automático de desligamento em caso de abertura da tampa durante seu funcionamento, em ângulo máximo de 10º; Soldas internas com processo de polimento para eliminar a micro porosidades prejudiciais à qualidade do leite; Régua em aço inox AISI 304 em escala de mm, acompanhada de tabela de conversão de medida da régua em volume de leite; Válvula de saída de 2” de diâmetro, tipo borboleta, com rosca SMS 51, em aço inox AISI 304 e válvula sanitária com rosca padrão de 2” SMS para acoplamento ao sistema de recolhimento do leite e tampão de plástico, sendo a válvula acoplada ao tubo através de porca que permite sua fácil remoção para higienização após a retirada do leite; Unidade condensadora hermética, dotadas de filtro secador, pressostato de segurança e sistema de expansão através de capilar ou válvula termostática; Painel de controle digital de alta precisão, composto de termostato, monitor de tensão e temporizador para o agitador; Monitoramento de tensão, protegendo o equipamento de variações de energia, cabo de aterramento, proteção contra raios e transientes, fusível de proteção geral e disjuntor. Logomarca da CODEVASF silkada em local visível, conforme modelo no edital. Garantia mínima 12 meses.","UND",15,12954,194310]
["20",null,null,"UND",null,null,0]
["20",217980,"(COTA DE ATÉ 25% - Exclusivo para ME e EPP):\nTanque de Expansão 1.000 litros - duas ordenhas, construção sanitária interna em aço inoxidável AISI 304 com espessura mínima de 1,25 mm, polido com rugosidade menor que RA = 1 (0,62), com parede dupla e isolamento de 50 mm de espessura e densidade de 40 kg/m³ em poliuretano injetado livre de CFC, que previne o aumento da temperatura do leite resfriado, não ultrapassando 1,2º C em 12 horas a uma temperatura ambiente de 32º C.; Alimentação elétrica monofásica 220V e 60 HZ; Evaporador com expansão direta em aço inoxidável AISI 304 com chapas de espessura mínimas de 2,0 mm no fundo e 1,0 mm na câmara; Tampa basculante em aço inoxidável AISI 304 com espessura mínima de 1,25 mm, dotada de amortecedores a gás para sustentação da mesma. Braço tubular de sustentação de tampa de aço inoxidável AISI, diâmetro de 1”; Sistema de agitação controlado automaticamente, permitindo uma perfeita homogenização do leite, evitando formação de gelo ou espumas e temporizador para evitar a separação da gordura no período entre resfriamento. Pá agitadora em aço inoxidável AISI 304 com extremidades dobradas em ângulos que garantem a homogenização do leite e maximizam a troca térmica, dotada de sistema automático de desligamento em caso de abertura da tampa durante seu funcionamento, em ângulo máximo de 10º; Soldas internas com processo de polimento para eliminar a micro porosidades prejudiciais à qualidade do leite; Régua em aço inox AISI 304 em escala de mm, acompanhada de tabela de conversão de medida da régua em volume de leite; Válvula de saída de 2” de diâmetro, tipo borboleta, com rosca SMS 51, em aço inox AISI 304 e válvula sanitária com rosca padrão de 2” SMS para acoplamento ao sistema de recolhimento do leite e tampão de plástico, sendo a válvula acoplada ao tubo através de porca que permite sua fácil remoção para higienização após a retirada do leite; Unidade condensadora hermética, dotadas de filtro secador, pressostato de segurança e sistema de expansão através de capilar ou válvula termostática; Painel de controle digital de alta precisão, composto de termostato, monitor de tensão e temporizador para o agitador; Monitoramento de tensão, protegendo o equipamento de variações de energia, cabo de aterramento, proteção contra raios e transientes, fusível de proteção geral e disjuntor. Logomarca da CODEVASF silkada em local visível, conforme modelo no edital. Garantia mínima 12 meses.","UND",5,12954,64770]
["21",217982,"Tanque de Expansão capacidade 2.000 litros - Tanque em aço inox AISI 304. Sistema de expansão direta. Timer com marcador digital de temperatura. Motor redutor com pá agitadora em aço inox AISI 304, com acabamento sanitário. Tampa de proteção de compressor para resfriadores. Motor monofásico 110/220 v. O equipamento deverá ser fabricado conforme IN nº 53 de 16 de agosto de 2002 do Ministério da Agricultura Pecuária e Abastecimento e normas da ABNT. Pá agitadora em aço inoxidável AISI 304 , dotada de sistema automático de desligamento em caso de abertura da tampa durante seu funcionamento; Régua em aço inox AISI 304 em escala de mm, acompanhada de tabela de conversão de medida da régua em volume de leite; Painel de controle digital, composto de, no mínimo,  termostato, monitor de tensão e temporizador para o agitador. Cabo de aterramento, proteção contra raios e transientes, fusível de proteção geral e disjuntor; Kit de limpeza. Logomarca da CODEVASF silkada em local visível, conforme modelo no edital. Garantia mínima de 12 meses.","UND",8,18789,150312]
["22",217982,"(COTA DE ATÉ 25% - Exclusivo para ME e EPP):\nTanque de Expansão capacidade 2.000 litros - Tanque em aço inox AISI 304. Sistema de expansão direta. Timer com marcador digital de temperatura. Motor redutor com pá agitadora em aço inox AISI 304, com acabamento sanitário. Tampa de proteção de compressor para resfriadores. Motor monofásico 110/220 v. O equipamento deverá ser fabricado conforme IN nº 53 de 16 de agosto de 2002 do Ministério da Agricultura Pecuária e Abastecimento e normas da ABNT. Pá agitadora em aço inoxidável AISI 304 , dotada de sistema automático de desligamento em caso de abertura da tampa durante seu funcionamento; Régua em aço inox AISI 304 em escala de mm, acompanhada de tabela de conversão de medida da régua em volume de leite; Painel de controle digital, composto de, no mínimo,  termostato, monitor de tensão e temporizador para o agitador. Cabo de aterramento, proteção contra raios e transientes, fusível de proteção geral e disjuntor; Kit de limpeza. Logomarca da CODEVASF silkada em local visível, conforme modelo no edital. Garantia mínima de 12 meses.","UND",2,18789,37578]
["23",126713,"Mesa Desoperculadora 48 Quadros - construída em aço inox AISI 304 - chapa com espessura mínima de 0,80 mm, capacidade 48 quadros de melgueira, tela pré-filtro malha 14 em aço inox AISI 304 no fundo, travessa/suporte de quadros em inox AISI 304, registro de corte rápido inox 1 1/4”  conexão TC, soldada pelo processo TIG com acabamento sanitário, polimento interno e externo, 4 pés fixos em tubos de aço inox AISI 304 de 2”, interligados por barras de reforço/fixação em aço inox AISI 304, medidas: 2,0x0,5x0,8m. Garantia mínima de 12 meses.","UND",20,3002.17,60043.4]
["24",441425,"Centrífuga Elétrica 32/48 quadros - .padrão internacional Langstroth - Tipo radial, elétrica, capacidade para 32 quadros Hoffman de ninho ou 48 de melgueira, toda fabricada em aço Inox AISI-304, chapa 0,91 mm,  registro de corte rápido inox 2” conexão TC, Soldada pelo processo TIG com acabamento sanitário, polimento interno e externo, fundo estampado, Tampa fixa bipartida, sistema de velocidade controlado por inversor de frequência digital 220 V monofásico (aceleração e frenagem controlada), motor elétrico de 0,5 CV-380 V monofásio, montada em rolamentos/retentores e mancais de alumínio, Estrutura externa em aço inox AISI 304, normas ABNT. Garantia mínima de 12 meses","UND",15,8790.83,131862.45000000001]
["25",441425,"(COTA DE ATÉ 25% - Exclusivo para ME e EPP):\nCentrífuga Elétrica 32/48 quadros - .padrão internacional Langstroth - Tipo radial, elétrica, capacidade para 32 quadros Hoffman de ninho ou 48 de melgueira, toda fabricada em aço Inox AISI-304, chapa 0,91 mm,  registro de corte rápido inox 2” conexão TC, Soldada pelo processo TIG com acabamento sanitário, polimento interno e externo, fundo estampado, Tampa fixa bipartida, sistema de velocidade controlado por inversor de frequência digital 220 V monofásico (aceleração e frenagem controlada), motor elétrico de 0,5 CV-380 V monofásio, montada em rolamentos/retentores e mancais de alumínio, Estrutura externa em aço inox AISI 304, normas ABNT. Garantia mínima de 12 meses.","UND",5,8790.83,43954.15]
["26",320647,"Tanque Decantador 350 kg - equipado com torneira de corte rápido de 2”, tampa com alça e abas leterais, totalmente em aço inox AISI 304, grau alimentício com solda TIG, acabamento sanitário para alimentos, estrutura de sustentação com pés tubulares de 4”, visor de nível e caimento para a saída, capacidade para 350 kg. Garantia mínima de 12 meses.","UND",30,2541,76230]
["27",320647,"(COTA DE ATÉ 25% - Exclusivo para ME e EPP):\nTanque Decantador 350 kg - equipado com torneira de corte rápido de 2”, tampa com alça e abas leterais, totalmente em aço inox AISI 304, grau alimentício com solda TIG, acabamento sanitário para alimentos, estrutura de sustentação com pés tubulares de 4”, visor de nível e caimento para a saída, capacidade para 350 kg. Garantia mínima de 12 meses.","UND",10,2541,25410]
["28",150909,"Peneira para Decantador 350 kg – aço inox 304 – 490 mm com abas laterais e com borda alta. Garantia mínima de 12 meses.","UND",40,395,15800]
["29",314842,"Balde inox para mel 25 kg - De uso na coleta de mel, contendo alça, em Aço Inox AISI 304, capacidade 25Kg. Garantia mínima de 12 meses.","UND",100,389.69,38969]
["30",150909,"Peneira para balde inox 25 kg - Aço inox 304 – 210 mm. Feita em aço inox para o uso de filtragem de mel adaptável a baldes de 25 kg. Garantia mínima de 12 meses","UND",100,165.17,16517]
["31",378974,"Colméia completa - 1 (um) ninho composto por caixa, tampa, fundo, 10 quadros aramados com arame inox 304L esticado, 0,40 mm, tipo mole e redutor de alvado - 2 (duas) Melgueiras - composta por caixa e 10 quadros aramados com arame inox 304L esticados, 0,40 mm, tipo mole – padrão internacional (LANGSTROTH) - confeccionados em madeira de lei certificada seca em estufa (cedro, cedrinho) ou eucalipto seco em estufa, montado e imunizado (imersão em óleo vegetal aquecido). Logomarca CODEVASF estampada em uma das laterais do ninho e das melgueiras, no tamanho de 25 x 6,5 cm - Utilizar tinta atóxica. Deverá ser obedecido rigorosamente os requisitos para fabricação de colméia do tipo Langstroth da ABNT NBR 15713:2009.","UND",750,240.32,180240]
["32",378974,"(COTA DE ATÉ 25% - Exclusivo para ME e EPP):\nColméia completa - 1 (um) ninho composto por caixa, tampa, fundo, 10 quadros aramados com arame inox 304L esticado, 0,40 mm, tipo mole e redutor de alvado - 2 (duas) Melgueiras - composta por caixa e 10 quadros aramados com arame inox 304L esticados, 0,40 mm, tipo mole – padrão internacional (LANGSTROTH) - confeccionados em madeira de lei certificada seca em estufa (cedro, cedrinho) ou eucalipto seco em estufa, montado e imunizado (imersão em óleo vegetal aquecido). Logomarca CODEVASF estampada em uma das laterais do ninho e das melgueiras, no tamanho de 25 x 6,5 cm - Utilizar tinta atóxica. Deverá ser obedecido rigorosamente os requisitos para fabricação de colméia do tipo Langstroth da ABNT NBR 15713:2009.","UND",250,240.32,{"$f":"ROUND(E36*F36,2)","v":60080}]
["33",314654,"Macacão para apicultor – em brim branco grosso profissional, elástico nos punhos, cintura e tornozelo, entradas para ventilação na frente e nos braços, máscara com tela de cor branca e chapéu aba dupla, apresentando abertura com zíper entre o blusão e a máscara. Tamanhos variados: M, G e GG. Logomarca da Codevasf estampada/pintada na cor azul na parte superior traseira do macacão no tamanho de 25 x 6,5 cm.","UND",300,223.3,66990]
["34",314654,"(COTA DE ATÉ 25% - Exclusivo para ME e EPP):\nMacacão para apicultor – em brim branco grosso profissional, elástico nos punhos, cintura e tornozelo, entradas para ventilação na frente e nos braços, máscara com tela de cor branca e chapéu aba dupla, apresentando abertura com zíper entre o blusão e a máscara. Tamanhos variados: M, G e GG. Logomarca da Codevasf estampada/pintada na cor azul na parte superior traseira do macacão no tamanho de 25 x 6,5 cm.","UND",100,223.3,22330]
["35",234473,"Bota em PVC – para apicultura, cano médio, na cor branca, numeração variada de 40 a 44.","PAR",400,75.5,30200]
["36",55476,"Luvas em vaqueta de couro - tamanho médio, com punho em courvim branco, com elástico nas extremidades, cano longo, palma lisa, forro em algodão; deverá ter certificado de aprovação do Ministério do Trabalho e Emprego","PAR",400,90.29,36116]
["37",293195,"Fumigador apícola - fornalha com capacidade para 6 litros, altura total de 370mm, fabricado em aço laminado com espessura mínima de 0,6mm, soldas bem vedadas, acabamento pintado e pegadores em madeira. Fole confeccionado com madeira maciça nas medidas 220x300mm, com pano de lona de courvin ou lona tipo encerado com no mínimo 1mm de espessura com tela de proteção na entrada de ar.","UND",200,261.39,52278]
["38",215590,"Cera de abelha alveolada pura - Padrão LANGSTROTH - em lâminas com 41 cm de comprimento, 20 cm de largura e espessura de 05 a 10 mm. A cera deverá ser entregue em embalagem contendo 10 kg do produto, rendimento médio 13 Laminas p/Kg, certificado sanitário do processamento (SIF).","KG",500,92.98,46490]
["39",297224,"Amassadeira - com capacidade mínima de 5kg. Potencia ¼ cv monofásico 220V. Dimensões:565 x 520 x 590. Garantia mínima de 12 meses.","UND",23,3335.45,76715.350000000006]
["40",297224,"(COTA DE ATÉ 25% - Exclusivo para ME e EPP):\nAmassadeira - com capacidade mínima de 5kg. Potencia ¼ cv monofásico 220V. Dimensões:565 x 520 x 590. Garantia mínima de 12 meses.","UND",7,3335.45,23348.15]
["41",150301,"Armário Estufa para panificação – com esteiras, material em epóxi.  Com  capacidade para 20 assadeiras com telas de alumínio perfuradas. Espaçamento de 9 cm entre as assadeiras. Medidas externas: 63 cm frente, 74 cm profundidade, 1,93 de altura. Garantia mínima de 12 meses.","UND",30,1871.17,56135.1]
["42",461228,"Balança Eletrônica – Com capacidade de 40 kg, alta precisão, completa. Dimensões mínimas da balança: 33 x 34 x 11,5 cm. Medidas da bandeja: 34,5x23 cm. Precisão: 1/3000 F.S. Entrada AC 110/220 (bivolt). Função auto desligar para economizar energia. Garantia mínima de 12 meses.","UND",30,632.28,18968.400000000001]
["43",28282,"Cilindro Elétrico – para sovar massa de pão de 35 cm. Carenagem em aço inoxidável. Laminadores em aço cromado. Motor 1/3 220V. Garantia mínima de 12 meses.","UND",23,3418.18,78618.14]
["44",28282,"(COTA DE ATÉ 25% - Exclusivo para ME e EPP):\nCilindro Elétrico – para sovar massa de pão de 35 cm. Carenagem em aço inoxidável. Laminadores em aço cromado. Motor 1/3 220V. Garantia mínima de 12 meses.","UND",7,3418.18,23927.26]
["45",17833,"Forno Industrial para Panificação a gás – inox, base de ferro, corpo em aço inox, termômetro para regulagem de temperatura, capacidade de no mínimo 08 assadeiras de 58x68cm (incluindo as assadeiras). Garantia mínima de 12 meses.","UND",23,8337.25,191756.75]
["46",17833,"(COTA DE ATÉ 25% - Exclusivo para ME e EPP):\nForno Industrial para Panificação a gás – inox, base de ferro, corpo em aço inox, termômetro para regulagem de temperatura, capacidade de no mínimo 08 assadeiras de 58x68cm (incluindo as assadeiras). Garantia mínima de 12 meses.\n","UND",7,8337.25,58360.75]
["47",272867,"Liquidificador profissional – em aço inoxidável, alta rotação com capacidade de 6 litros, 220V. Garantia mínima de 12 meses.","UND",30,1007.51,30225.3]
["48",457008,"Mesa de preparo inox – constituída em chapa inox tipo AISI -304 nº 16 e abas de 50 mm dobradas para baixo, nas dimensões aproximadas de 2,00 x 0,70 x 0,85 m. Pés em tubo de aço inox 50mm, com sapatas tipo roscas para regulagem de nível. Garantia mínima de 12 meses.","UND",30,2386.4899999999998,71594.7]
["49",1937,"Caminhão leve com tanque para transporte de leite - cabina avançada construída em chapas metálicas; capacidade máxima de tração (CMT): 8.000 kg, 0 km; 05 marchas à frente sincronizadas e 01 à ré; motor a diesel com sistema de injeção eletrônica e potência líquida mínima de 160 cv, freios de serviço a ar e direção hidráulica; embreagem com acionamento hidráulico; alternador 14 V e 90 A; bateria 12 V, 750 CCA e 78 AH; dimensões mínimas da rodas 5,5 x 16\" em aço estampado; pneus iguais e compatíveis com as dimensões das rodas (novos); freio de estacionamento; direção hidráulica; capacidade de carga útil+carroceria: 5.000 kg, tanque de combustível capacidade mínima 150 litros; ar condicionado; Cor branco. Carroceria tanque para coleta de leite e transporte rodoviário - tanque isotérmico de aço inox AISI 304, externamente em aço inox AISI 430, com superfície polida, isolamento térmico em poliuretana, cantos arredondados e acabamento sanitário, com plataformas laterais, com sistema hidráulico externo “caixa de óleo” acionado por tomada de força. Capacidade mínima de 5.000 Litros. Especificações complementares: Módulo Interno: sendo dividido em compartimentos independentes em aço inox AISI 304, com tampas e emendas arredondadas e polidas com acabamento sanitário. Revestimento externo: em aço inox, com isolamento térmico em poliuretano expandido de alta densidade, sendo a estrutura interna em viga U. Boca de visita em cada compartimento. Plataforma do tanque: sendo construída em aço carbono, com chapa piso xadrez antiderrapante, com pintura especial na cor preta, tendo em sua volta uma cerca de proteção e estruturada em viga U, com proteção dianteira \"Santo Antonio\" e escadas laterais. Plataforma superior central: construída em alumínio antiderrapante e escada do tanque em aço inox. Bomba de leite, mangueira, ponteira de sucção completa, caixa de inox para depósito de coletas e amostras. Registros e conexões em aço inox polido. Sistema de limpeza spray-ball para cada compartimento, com tubulação para limpeza cip. Tubulação de saída do produto em 3\". Acessórios: Conjunto de para lamas com apara barros de borracha. Tanque com faixas refletivas e jogo de apara barro de borracha. Protetor lateral p/ ciclista e para choque homologado. Logomarca da CODEVASF silkada em local visível, conforme modelo no edital. Garantia mínima de 12 meses, sem limite de quilometragem.","UND",3,412250,1236750]
["50",1937,"Caminhão leve com carroceria de madeira - potência mínima 150 CV, 0 km, ano de fabricação corrente, cabine com barra de proteção nas portas, cintos de segurança de 03 (três) pontos, bancos em tecido, com ar condicionado. Carga útil + carroceria  mínima de 3.800 kg. Motor 04 (quatro) cilindros, combustível diesel. Carroceria em madeira, pintura emborrachada + corrente do meio + 02 lameiras. Direção hidráulica. Logomarca da CODEVASF silkada em local visível, conforme modelo no edital. Garantia mínima de 12 meses, sem limite de quilometragem.","UND",5,260500,1302500]
["51",1937,"(COTA DE ATÉ 25% - Exclusivo para ME e EPP):\nCaminhão leve com carroceria de madeira - potência mínima 150 CV, 0 km, ano de fabricação corrente, cabine com barra de proteção nas portas, cintos de segurança de 03 (três) pontos, bancos em tecido, com ar condicionado. Carga útil + carroceria  mínima de 3.800 kg. Motor 04 (quatro) cilindros, combustível diesel. Carroceria em madeira, pintura emborrachada + corrente do meio + 02 lameiras. Direção hidráulica. Logomarca da CODEVASF silkada em local visível, conforme modelo no edital. Garantia mínima de 12 meses, sem limite de quilometragem.","UND",1,260500,260500]